[Event "CAMPEONATO NACIONAL ABSOLUTO DE CHILE 2019"]
[Site "Torre ENTEL, Chile"]
[Date "2019.02.28"]
[Round "11.1"]
[White "Tapia Fuentes, Jaime"]
[Black "Gasic Merino, Franco"]
[Result "0-1"]
[TimeControl "90 minutos mas 30 segundos incremento por movida"]
[WhiteTitle "FM"]
[WhiteFideId "3403025"]
[BlackFideId "3414370"]
[WhiteElo "2259"]
[BlackElo "2189"]

1. Nf3 {[%clk 01:25:14]} {[%emt 00:05:46]} Nf6 {[%clk 01:30:49]} {[%emt
00:00:12]} 2. g3 {[%clk 01:25:39]} {[%emt 00:00:04]} g6 {[%clk 01:31:11]}
{[%emt 00:00:08]} 3. Bg2 {[%clk 01:26:06]} {[%emt 00:00:03]} Bg7 {[%clk
01:31:34]} {[%emt 00:00:08]} 4. O-O {[%clk 01:26:31]} {[%emt 00:00:04]} c5
{[%clk 01:31:42]} {[%emt 00:00:22]} 5. d3 {[%clk 01:26:47]} {[%emt 00:00:14]}
O-O {[%clk 01:31:58]} {[%emt 00:00:14]} 6. e4 {[%clk 01:27:06]} {[%emt
00:00:11]} d6 {[%clk 01:32:06]} {[%emt 00:00:22]} 7. Re1 {[%clk 01:27:32]}
{[%emt 00:00:05]} Nc6 {[%clk 01:32:15]} {[%emt 00:00:22]} 8. c3 {[%clk
01:27:57]} {[%emt 00:00:04]} Rb8 {[%clk 01:31:50]} {[%emt 00:00:54]} 9. d4
{[%clk 01:27:27]} {[%emt 00:01:00]} cxd4 {[%clk 01:27:24]} {[%emt 00:05:27]} 10.
cxd4 {[%clk 01:27:55]} d5 {[%clk 01:26:19]} {[%emt 00:01:08]} 11. e5 {[%clk
01:27:07]} {[%emt 00:01:18]} Ne4 {[%clk 01:26:39]} {[%emt 00:00:09]} 12. Nbd2
{[%clk 01:27:14]} {[%emt 00:00:22]} Bf5 {[%clk 01:20:17]} {[%emt 00:06:53]} 13.
Nb3 {[%clk 01:27:06]} {[%emt 00:00:39]} f6 {[%clk 01:17:00]} {[%emt 00:03:46]}
14. exf6 {[%clk 01:26:50]} {[%emt 00:00:45]} Bxf6 {[%clk 01:12:10]} {[%emt
00:05:20]} 15. Bf4 {[%clk 01:26:18]} {[%emt 00:01:02]} Rc8 {[%clk 01:12:16]}
{[%emt 00:00:24]} 16. Ne5 {[%clk 01:26:23]} {[%emt 00:00:25]} g5 {[%clk
01:04:38]} {[%emt 00:08:08]} 17. Nxc6 {[%clk 01:26:04]} {[%emt 00:00:49]} Rxc6
{[%clk 01:03:12]} {[%emt 00:01:56]} 18. Be3 {[%clk 01:26:19]} {[%emt 00:00:15]}
Qd7 {[%clk 00:58:40]} {[%emt 00:05:02]} 19. f3 {[%clk 01:21:54]} {[%emt
00:04:54]} Nd6 {[%clk 00:57:45]} {[%emt 00:01:24]} 20. Nc5 {[%clk 01:22:00]}
{[%emt 00:00:25]} Qd8 {[%clk 00:54:38]} {[%emt 00:03:38]} 21. g4 {[%clk
01:17:10]} {[%emt 00:05:19]} b6 {[%clk 00:50:13]} {[%emt 00:04:55]} 22. Na6
{[%clk 01:13:01]} {[%emt 00:04:38]} Be6 {[%clk 00:44:12]} {[%emt 00:06:32]} 23.
b3 {[%clk 01:11:09]} {[%emt 00:02:22]} Qc8 {[%clk 00:37:44]} {[%emt 00:06:58]}
24. Nb4 {[%clk 01:06:59]} {[%emt 00:04:39]} Rc3 {[%clk 00:38:11]} {[%emt
00:00:04]} 25. Nd3 {[%clk 01:02:14]} {[%emt 00:05:14]} Nb5 {[%clk 00:28:09]}
{[%emt 00:10:33]} 26. Ne5 {[%clk 00:57:08]} {[%emt 00:05:37]} Na3 {[%clk
00:28:16]} {[%emt 00:00:22]} 27. Qd2 {[%clk 00:56:46]} {[%emt 00:00:52]} Rc7
{[%clk 00:18:34]} {[%emt 00:10:12]} 28. Rac1 {[%clk 00:50:30]} {[%emt
00:06:46]} Bxe5 {[%clk 00:17:26]} {[%emt 00:01:37]} 29. dxe5 {[%clk 00:50:35]}
{[%emt 00:00:25]} Nc2 {[%clk 00:17:48]} {[%emt 00:00:08]} 30. Red1 {[%clk
00:26:54]} {[%emt 00:24:11]} Nxe3 {[%clk 00:18:06]} {[%emt 00:00:13]} 31. Qxe3
{[%clk 00:27:08]} {[%emt 00:00:16]} Rf4 {[%clk 00:18:15]} {[%emt 00:00:21]} 32.
Rxc7 {[%clk 00:27:03]} {[%emt 00:00:37]} Qxc7 {[%clk 00:18:43]} 33. Rc1 {[%clk
00:27:19]} {[%emt 00:00:14]} Qd7 {[%clk 00:17:59]} {[%emt 00:01:15]} 34. h4
{[%clk 00:22:01]} {[%emt 00:05:47]} h6 {[%clk 00:17:12]} {[%emt 00:01:17]} 35.
Qd3 {[%clk 00:20:19]} {[%emt 00:02:11]} Bf7 {[%clk 00:15:39]} {[%emt 00:02:03]}
36. Re1 {[%clk 00:19:05]} {[%emt 00:01:45]} Kg7 {[%clk 00:13:08]} {[%emt
00:03:02]} 37. Rd1 {[%clk 00:16:47]} {[%emt 00:02:47]} d4 {[%clk 00:13:00]}
{[%emt 00:00:37]} 38. h5 {[%clk 00:13:57]} {[%emt 00:03:20]} Qd5 {[%clk
00:12:24]} {[%emt 00:01:07]} 39. Re1 {[%clk 00:14:05]} {[%emt 00:00:21]} b5
{[%clk 00:10:32]} {[%emt 00:02:22]} 40. Kf2 {[%clk 00:11:12]} {[%emt 00:03:24]}
a5 {[%clk 00:09:32]} {[%emt 00:01:31]} 41. Bf1 {[%clk 00:10:11]} {[%emt
00:01:30]} b4 {[%clk 00:09:30]} {[%emt 00:00:32]} 42. Re4 {[%clk 00:05:08]}
{[%emt 00:05:33]} Rxe4 {[%clk 00:09:30]} {[%emt 00:00:30]} 43. Qxe4 {[%clk
00:05:37]} {[%emt 00:00:01]} Qxe4 {[%clk 00:07:18]} {[%emt 00:02:43]} 44. fxe4
{[%clk 00:06:06]} {[%emt 00:00:01]} Be6 {[%clk 00:07:12]} {[%emt 00:00:36]} 45.
Be2 {[%clk 00:06:12]} {[%emt 00:00:24]} Bc8 {[%clk 00:05:08]} {[%emt 00:02:32]}
46. Ke1 {[%clk 00:04:22]} {[%emt 00:02:21]} Kf7 {[%clk 00:05:22]} {[%emt
00:00:16]} 47. Bc4+ {[%clk 00:04:42]} {[%emt 00:00:11]} Kg7 {[%clk 00:04:31]}
{[%emt 00:01:21]} 48. Be2 {[%clk 00:04:15]} {[%emt 00:00:56]} d3 {[%clk
00:02:07]} {[%emt 00:02:55]} 49. Bf3 {[%clk 00:03:53]} {[%emt 00:00:52]} Kf7
{[%clk 00:02:08]} {[%emt 00:00:29]} 50. Kd2 {[%clk 00:04:10]} {[%emt 00:00:12]}
Ke6 {[%clk 00:02:10]} {[%emt 00:00:28]} 51. Kxd3 {[%clk 00:04:23]} {[%emt
00:00:17]} Kxe5 {[%clk 00:02:40]} {[%emt 00:00:01]} 52. Ke3 {[%clk 00:04:42]}
{[%emt 00:00:10]} Bb7 {[%clk 00:02:47]} {[%emt 00:00:24]} 53. Bg2 {[%clk
00:04:55]} {[%emt 00:00:15]} Ba8 {[%clk 00:02:52]} {[%emt 00:00:27]} 54. Bf3
{[%clk 00:05:10]} {[%emt 00:00:14]} Bc6 {[%clk 00:03:17]} {[%emt 00:00:04]} 55.
Bg2 {[%clk 00:05:27]} {[%emt 00:00:13]} a4 {[%clk 00:03:22]} {[%emt 00:00:26]}
56. Bf3 {[%clk 00:00:50]} {[%emt 00:05:07]} a3 {[%clk 00:03:34]} {[%emt
00:00:17]} 57. Kd3 {[%clk 00:00:51]} {[%emt 00:00:30]} Bb5+ {[%clk 00:03:41]}
{[%emt 00:00:24]} 58. Ke3 {[%clk 00:01:18]} {[%emt 00:00:03]} Ba6 {[%clk
00:03:18]} {[%emt 00:00:51]} 59. Bd1 {[%clk 00:01:26]} {[%emt 00:00:23]} Bc8
{[%clk 00:03:28]} {[%emt 00:00:19]} 60. Bf3 {[%clk 00:01:43]} {[%emt 00:00:15]}
Be6 {[%clk 00:03:27]} {[%emt 00:00:30]} 61. Bd1 {[%clk 00:02:07]} {[%emt
00:00:06]} Bf7 {[%clk 00:03:34]} {[%emt 00:00:22]} 62. Bc2 {[%clk 00:01:45]}
{[%emt 00:00:54]} Be8 {[%clk 00:03:27]} {[%emt 00:00:36]} 63. Bd3 {[%clk
00:01:51]} {[%emt 00:00:25]} Bd7 {[%clk 00:03:47]} {[%emt 00:00:10]} 64. Be2
{[%clk 00:02:14]} {[%emt 00:00:07]} Bc8 {[%clk 00:04:08]} {[%emt 00:00:09]} 65.
Bd1 {[%clk 00:02:25]} {[%emt 00:00:18]} Be6 {[%clk 00:04:34]} {[%emt 00:00:05]}
66. Kd3 {[%clk 00:00:35]} {[%emt 00:02:20]} Kf4 {[%clk 00:04:59]} {[%emt
00:00:04]} 67. Kd4 {[%clk 00:00:39]} {[%emt 00:00:27]} Bxg4 {[%clk 00:05:22]}
{[%emt 00:00:07]} 68. Bc2 {[%clk 00:01:06]} {[%emt 00:00:02]} Be2 {[%clk
00:04:51]} {[%emt 00:01:01]} 0-1

[Event "CAMPEONATO NACIONAL ABSOLUTO DE CHILE 2019"]
[Site "Torre ENTEL, Chile"]
[Date "2019.02.28"]
[Round "11.2"]
[White "Aguirre Contreras, Cristian"]
[Black "Olivares Olivares, Claudio"]
[Result "1-0"]
[TimeControl "90 minutos mas 30 segundos incremento por movida"]
[WhiteTitle "FM"]
[BlackTitle "FM"]
[WhiteFideId "3412776"]
[BlackFideId "3400786"]
[WhiteElo "2252"]
[BlackElo "2387"]

1. e4 {[%clk 01:30:57]} {[%emt 00:00:02]} c5 {[%clk 01:30:18]} {[%emt
00:00:41]} 2. c3 {[%clk 01:31:23]} {[%emt 00:00:06]} d5 {[%clk 01:30:42]}
{[%emt 00:00:06]} 3. exd5 {[%clk 01:31:48]} {[%emt 00:00:06]} Qxd5 {[%clk
01:31:04]} {[%emt 00:00:07]} 4. d4 {[%clk 01:32:13]} {[%emt 00:00:05]} Nf6
{[%clk 01:31:27]} {[%emt 00:00:06]} 5. Nf3 {[%clk 01:32:38]} {[%emt 00:00:05]}
Bg4 {[%clk 01:31:43]} {[%emt 00:00:13]} 6. Be2 {[%clk 01:33:03]} {[%emt
00:00:06]} e6 {[%clk 01:32:07]} {[%emt 00:00:05]} 7. Na3 {[%clk 01:33:12]}
{[%emt 00:00:22]} a6 {[%clk 01:30:28]} {[%emt 00:02:09]} 8. Nc4 {[%clk
01:32:05]} {[%emt 00:01:37]} Bxf3 {[%clk 01:28:34]} {[%emt 00:02:23]} 9. gxf3
{[%clk 01:27:55]} {[%emt 00:04:41]} Nbd7 {[%clk 01:27:14]} {[%emt 00:02:21]} 10.
Rg1 {[%clk 01:25:06]} {[%emt 00:02:48]} cxd4 {[%clk 01:26:11]} {[%emt
00:01:33]} 11. Rg5 {[%clk 01:22:49]} {[%emt 00:02:47]} Qc6 {[%clk 01:20:03]}
{[%emt 00:06:37]} 12. Qxd4 {[%clk 01:22:05]} {[%emt 00:01:15]} b5 {[%clk
01:17:47]} {[%emt 00:02:45]} 13. Ne3 {[%clk 01:16:05]} {[%emt 00:06:30]} Nc5
{[%clk 01:13:26]} {[%emt 00:04:52]} 14. c4 {[%clk 01:07:37]} {[%emt 00:08:58]}
b4 {[%clk 01:12:39]} {[%emt 00:01:16]} 15. Nc2 {[%clk 01:02:22]} {[%emt
00:05:45]} Rd8 {[%clk 01:07:16]} {[%emt 00:05:52]} 16. Qe3 {[%clk 01:02:08]}
{[%emt 00:00:46]} h6 {[%clk 01:04:51]} {[%emt 00:02:55]} 17. Rg1 {[%clk
00:54:45]} {[%emt 00:07:53]} Na4 {[%clk 01:01:34]} {[%emt 00:03:46]} 18. Qb3
{[%clk 00:50:07]} {[%emt 00:05:09]} a5 {[%clk 00:59:35]} {[%emt 00:02:29]} 19.
Bd2 {[%clk 00:45:15]} {[%emt 00:05:21]} g6 {[%clk 00:54:08]} {[%emt 00:05:57]}
20. O-O-O {[%clk 00:44:11]} {[%emt 00:01:34]} Nc5 {[%clk 00:45:54]} {[%emt
00:08:43]} 21. Qe3 {[%clk 00:43:53]} {[%emt 00:00:48]} Be7 {[%clk 00:41:50]}
{[%emt 00:04:34]} 22. Kb1 {[%clk 00:41:33]} {[%emt 00:02:50]} h5 {[%clk
00:40:37]} {[%emt 00:01:43]} 23. Nd4 {[%clk 00:40:29]} {[%emt 00:01:35]} Qb7
{[%clk 00:40:58]} {[%emt 00:00:08]} 24. Bc1 {[%clk 00:40:13]} {[%emt 00:00:45]}
h4 {[%clk 00:39:58]} {[%emt 00:01:30]} 25. Nb5 {[%clk 00:39:34]} {[%emt
00:01:10]} O-O {[%clk 00:39:15]} {[%emt 00:01:13]} 26. Qh6 {[%clk 00:37:44]}
{[%emt 00:02:19]} Rxd1 {[%clk 00:39:32]} {[%emt 00:00:13]} 27. Bxd1 {[%clk
00:34:49]} {[%emt 00:03:26]} Rd8 {[%clk 00:33:57]} {[%emt 00:06:04]} 28. Bc2
{[%clk 00:34:25]} {[%emt 00:00:54]} Bf8 {[%clk 00:30:17]} {[%emt 00:04:10]} 29.
Qxh4 {[%clk 00:31:38]} {[%emt 00:03:17]} Bg7 {[%clk 00:30:10]} {[%emt
00:00:37]} 30. Be3 {[%clk 00:24:16]} {[%emt 00:07:51]} Ncd7 {[%clk 00:29:08]}
{[%emt 00:01:32]} 31. Nd6 {[%clk 00:19:46]} {[%emt 00:05:01]} Qxf3 {[%clk
00:28:47]} {[%emt 00:00:51]} 32. Qg5 {[%clk 00:18:12]} {[%emt 00:02:04]} Nf8
{[%clk 00:24:55]} {[%emt 00:04:22]} 33. Nxf7 {[%clk 00:17:22]} {[%emt
00:01:20]} Kxf7 {[%clk 00:25:08]} {[%emt 00:00:17]} 34. Bxg6+ {[%clk 00:17:36]}
{[%emt 00:00:16]} Ke7 {[%clk 00:25:25]} {[%emt 00:00:12]} 35. Qc5+ {[%clk
00:15:31]} {[%emt 00:02:35]} Rd6 {[%clk 00:25:10]} {[%emt 00:00:45]} 36. Qc7+
{[%clk 00:15:45]} {[%emt 00:00:17]} N6d7 {[%clk 00:20:58]} {[%emt 00:04:42]} 37.
Bc5 {[%clk 00:15:53]} {[%emt 00:00:22]} Be5 {[%clk 00:20:29]} {[%emt 00:00:59]}
38. Bc2 {[%clk 00:15:15]} {[%emt 00:01:08]} Qf4 {[%clk 00:14:04]} {[%emt
00:06:54]} 39. Rd1 {[%clk 00:15:05]} {[%emt 00:00:40]} Qxh2 {[%clk 00:14:29]}
{[%emt 00:00:05]} 40. Ba4 {[%clk 00:13:53]} {[%emt 00:01:43]} Qf4 {[%clk
00:14:23]} {[%emt 00:00:35]} 41. a3 {[%clk 00:12:00]} {[%emt 00:02:25]} bxa3
{[%clk 00:12:01]} {[%emt 00:02:52]} 42. Bxa3 {[%clk 00:12:01]} {[%emt
00:00:29]} Qe4+ {[%clk 00:10:52]} {[%emt 00:01:38]} 43. Ka2 {[%clk 00:11:42]}
{[%emt 00:00:49]} Qf4 {[%clk 00:10:40]} {[%emt 00:00:42]} 44. Rd3 {[%clk
00:10:21]} {[%emt 00:01:51]} Qh2 {[%clk 00:10:26]} {[%emt 00:00:44]} 45. Rf3
{[%clk 00:09:48]} {[%emt 00:01:03]} Qh7 {[%clk 00:09:14]} {[%emt 00:01:41]} 46.
Qc8 {[%clk 00:06:20]} {[%emt 00:03:59]} Qe4 {[%clk 00:08:23]} {[%emt 00:01:21]}
47. Rxf8 {[%clk 00:06:03]} {[%emt 00:00:47]} Nxf8 {[%clk 00:08:45]} {[%emt
00:00:08]} 48. Qe8+ {[%clk 00:06:27]} {[%emt 00:00:06]} 1-0

[Event "CAMPEONATO NACIONAL ABSOLUTO DE CHILE 2019"]
[Site "Torre ENTEL, Chile"]
[Date "2019.02.28"]
[Round "11.3"]
[White "Cuevas Araya, Walter"]
[Black "Garcia Cardenas, Pablo"]
[Result "0-1"]
[TimeControl "90 minutos mas 30 segundos incremento por movida"]
[WhiteTitle "FM"]
[BlackTitle "IM"]
[WhiteFideId "3405028"]
[BlackFideId "3406903"]
[WhiteElo "2187"]
[BlackElo "2449"]

1. e4 {[%clk 01:27:14]} {[%emt 00:03:46]} c5 {[%clk 01:30:56]} {[%emt
00:00:04]} 2. Nf3 {[%clk 01:27:30]} {[%emt 00:00:14]} e6 {[%clk 01:31:21]}
{[%emt 00:00:05]} 3. d4 {[%clk 01:27:57]} {[%emt 00:00:03]} cxd4 {[%clk
01:31:47]} {[%emt 00:00:03]} 4. Nxd4 {[%clk 01:28:24]} {[%emt 00:00:03]} a6
{[%clk 01:32:11]} {[%emt 00:00:07]} 5. Nc3 {[%clk 01:27:16]} {[%emt 00:01:38]}
Qc7 {[%clk 01:31:49]} {[%emt 00:00:51]} 6. Bd3 {[%clk 01:24:25]} {[%emt
00:03:21]} Nf6 {[%clk 01:30:31]} {[%emt 00:01:49]} 7. Qe2 {[%clk 01:22:01]}
{[%emt 00:03:32]} d6 {[%clk 01:20:29]} {[%emt 00:09:54]} 8. g4 {[%clk
01:14:42]} {[%emt 00:07:49]} Be7 {[%clk 00:57:30]} {[%emt 00:23:28]} 9. g5
{[%clk 00:59:23]} {[%emt 00:15:49]} Nfd7 {[%clk 00:57:39]} {[%emt 00:00:21]} 10.
Be3 {[%clk 00:59:51]} {[%emt 00:00:02]} b5 {[%clk 00:55:54]} {[%emt 00:02:15]}
11. a3 {[%clk 00:54:30]} {[%emt 00:05:51]} Bb7 {[%clk 00:49:21]} {[%emt
00:07:03]} 12. Rg1 {[%clk 00:51:07]} {[%emt 00:03:53]} Nc6 {[%clk 00:40:51]}
{[%emt 00:09:00]} 13. f4 {[%clk 00:46:47]} {[%emt 00:04:50]} Nxd4 {[%clk
00:31:18]} {[%emt 00:10:03]} 14. Bxd4 {[%clk 00:47:12]} {[%emt 00:00:05]} e5
{[%clk 00:31:45]} {[%emt 00:00:03]} 15. Be3 {[%clk 00:46:40]} {[%emt 00:01:01]}
exf4 {[%clk 00:29:37]} {[%emt 00:02:39]} 16. Bxf4 {[%clk 00:47:04]} {[%emt
00:00:06]} O-O {[%clk 00:28:34]} {[%emt 00:01:33]} 17. O-O-O {[%clk 00:46:23]}
{[%emt 00:01:11]} Rfe8 {[%clk 00:28:21]} {[%emt 00:00:43]} 18. Qf2 {[%clk
00:46:06]} {[%emt 00:00:47]} Bf8 {[%clk 00:26:11]} {[%emt 00:02:40]} 19. Nd5
{[%clk 00:45:50]} {[%emt 00:00:47]} Bxd5 {[%clk 00:26:32]} {[%emt 00:00:09]} 20.
exd5 {[%clk 00:46:18]} {[%emt 00:00:01]} g6 {[%clk 00:26:24]} {[%emt 00:00:38]}
21. h4 {[%clk 00:42:03]} {[%emt 00:04:45]} Nb6 {[%clk 00:22:11]} {[%emt
00:04:43]} 22. h5 {[%clk 00:42:23]} {[%emt 00:00:11]} Nxd5 {[%clk 00:19:25]}
{[%emt 00:03:16]} 23. hxg6 {[%emt 00:08:12]} hxg6 {[%clk 00:19:41]} {[%emt
00:00:12]} 24. Bxb5 {[%emt 00:20:27]} axb5 {[%clk 00:18:22]} {[%emt 00:01:48]}
25. Rxd5 {[%clk 00:15:06]} {[%emt 00:00:11]} Qc4 {[%clk 00:13:06]} {[%emt
00:05:47]} 26. Rd4 {[%clk 00:12:55]} {[%emt 00:02:41]} Qa2 {[%clk 00:13:25]}
{[%emt 00:00:10]} 27. Rb4 {[%clk 00:08:33]} {[%emt 00:04:52]} d5 {[%clk
00:08:08]} {[%emt 00:05:47]} 28. Rb3 {[%clk 00:07:48]} {[%emt 00:01:15]} Rac8
{[%clk 00:08:21]} {[%emt 00:00:17]} 29. Kd1 {[%clk 00:07:07]} {[%emt 00:01:11]}
Bc5 {[%clk 00:08:20]} {[%emt 00:00:31]} 30. Qh4 {[%clk 00:00:42]} {[%emt
00:06:55]} Qb1+ {[%clk 00:07:14]} {[%emt 00:01:35]} 31. Kd2 {[%clk 00:00:36]}
{[%emt 00:00:37]} Bxg1 {[%clk 00:06:48]} {[%emt 00:00:57]} 0-1

[Event "CAMPEONATO NACIONAL ABSOLUTO DE CHILE 2019"]
[Site "Torre ENTEL, Chile"]
[Date "2019.02.28"]
[Round "11.5"]
[White "Lopez Silva, Hugo"]
[Black "Torres Bravo, Cristobal"]
[Result "1/2-1/2"]
[TimeControl "90 minutos mas 30 segundos incremento por movida"]
[BlackTitle "FM"]
[WhiteFideId "3403874"]
[BlackFideId "3405940"]
[WhiteElo "2413"]
[BlackElo "2347"]

1. e4 {[%clk 01:26:55]} {[%emt 00:04:04]} c5 {[%clk 01:20:33]} {[%emt
00:11:19]} 2. Nf3 {[%clk 01:27:04]} {[%emt 00:00:05]} Nc6 {[%clk 01:20:53]} 3.
d4 {[%clk 01:27:24]} cxd4 {[%clk 01:21:15]} {[%emt 00:00:02]} 4. Nxd4 {[%clk
01:27:50]} e6 {[%clk 01:21:40]} 5. Nc3 {[%clk 01:27:41]} {[%emt 00:00:37]} Qc7
{[%clk 01:22:05]} {[%emt 00:00:05]} 6. Be3 {[%clk 01:26:54]} {[%emt 00:01:16]}
a6 {[%clk 01:22:14]} {[%emt 00:00:22]} 7. Qf3 {[%clk 01:24:18]} {[%emt
00:03:05]} Nf6 {[%clk 01:22:01]} {[%emt 00:00:44]} 8. O-O-O {[%clk 01:23:48]}
{[%emt 00:01:00]} h5 {[%clk 01:22:19]} {[%emt 00:00:12]} 9. h3 {[%clk
01:12:46]} {[%emt 00:11:32]} d6 {[%clk 01:15:01]} {[%emt 00:07:49]} 10. Be2
{[%clk 01:03:38]} {[%emt 00:09:38]} Be7 {[%clk 01:14:00]} {[%emt 00:01:32]} 11.
g4 {[%clk 00:57:55]} {[%emt 00:06:12]} Nxd4 {[%clk 00:57:03]} {[%emt 00:17:27]}
12. Rxd4 {[%clk 00:57:21]} {[%emt 00:01:03]} b5 {[%clk 00:56:25]} {[%emt
00:01:09]} 13. Qg2 {[%clk 00:36:23]} {[%emt 00:21:27]} Bb7 {[%clk 00:47:54]}
{[%emt 00:09:02]} 14. g5 {[%clk 00:30:47]} {[%emt 00:06:06]} Nd7 {[%clk
00:46:16]} {[%emt 00:02:07]} 15. Rhd1 {[%clk 00:30:29]} {[%emt 00:00:48]} Rc8
{[%clk 00:45:26]} {[%emt 00:01:21]} 16. a3 {[%clk 00:20:39]} {[%emt 00:10:21]}
d5 {[%clk 00:38:49]} {[%emt 00:07:06]} 17. g6 {[%clk 00:14:04]} {[%emt
00:07:04]} f6 {[%clk 00:37:27]} {[%emt 00:01:52]} 18. R4d2 {[%clk 00:05:45]}
{[%emt 00:08:49]} Bxa3 {[%clk 00:27:49]} {[%emt 00:10:09]} 19. Nxd5 {[%clk
00:05:33]} {[%emt 00:00:42]} exd5 {[%clk 00:19:40]} {[%emt 00:08:39]} 20. bxa3
{[%clk 00:06:01]} Nc5 {[%clk 00:19:51]} {[%emt 00:00:20]} 21. Bxc5 {[%clk
00:01:44]} {[%emt 00:04:47]} Qxc5 {[%clk 00:20:16]} {[%emt 00:00:05]} 22. exd5
{[%clk 00:01:01]} {[%emt 00:01:14]} Qxa3+ {[%clk 00:20:29]} {[%emt 00:00:17]}
23. Kb1 {[%clk 00:01:30]} Qb4+ {[%clk 00:15:43]} {[%emt 00:05:16]} 24. Kc1
{[%clk 00:01:59]} {[%emt 00:00:01]} Qa3+ {[%emt 00:13:58]} 1/2-1/2

[Event "CAMPEONATO NACIONAL ABSOLUTO DE CHILE 2019"]
[Site "Torre ENTEL, Chile"]
[Date "2019.02.28"]
[Round "11.6"]
[White "Salinas Herrera, Pablo"]
[Black "Henriquez Villagra, Cristobal"]
[Result "1/2-1/2"]
[TimeControl "90 minutos mas 30 segundos incremento por movida"]
[WhiteTitle "IM"]
[BlackTitle "GM"]
[WhiteFideId "3407128"]
[BlackFideId "3409350"]
[WhiteElo "2477"]
[BlackElo "2508"]

1. d4 {[%clk 01:30:52]} {[%emt 00:00:06]} Nf6 {[%clk 01:27:17]} {[%emt
00:03:44]} 2. Nf3 {[%clk 01:31:16]} {[%emt 00:00:06]} d5 {[%clk 01:27:43]}
{[%emt 00:00:04]} 3. Bf4 {[%clk 01:31:35]} {[%emt 00:00:11]} e6 {[%clk
01:26:46]} {[%emt 00:01:28]} 4. e3 {[%clk 01:31:25]} {[%emt 00:00:39]} c5
{[%clk 01:25:34]} {[%emt 00:01:42]} 5. c3 {[%clk 01:31:35]} {[%emt 00:00:20]}
Nc6 {[%clk 01:25:23]} {[%emt 00:00:40]} 6. Nbd2 {[%clk 01:30:13]} {[%emt
00:01:53]} Bd6 {[%clk 01:25:31]} {[%emt 00:00:22]} 7. Bg3 {[%clk 01:30:36]}
{[%emt 00:00:06]} O-O {[%clk 01:25:55]} {[%emt 00:00:06]} 8. Bd3 {[%clk
01:28:49]} {[%emt 00:02:17]} b6 {[%clk 01:25:02]} {[%emt 00:01:35]} 9. e4
{[%clk 01:29:11]} Be7 {[%clk 01:24:49]} {[%emt 00:00:38]} 10. Ne5 {[%clk
01:25:46]} {[%emt 00:03:55]} Nxe5 {[%clk 01:24:41]} {[%emt 00:00:38]} 11. dxe5
{[%clk 01:26:11]} {[%emt 00:00:05]} Nxe4 {[%clk 01:25:06]} {[%emt 00:00:05]} 12.
Nxe4 {[%clk 01:26:37]} {[%emt 00:00:05]} dxe4 {[%clk 01:25:30]} {[%emt
00:00:06]} 13. Bxe4 {[%clk 01:27:04]} {[%emt 00:00:03]} Qxd1+ {[%clk 01:25:42]}
{[%emt 00:00:18]} 14. Rxd1 {[%clk 01:27:29]} {[%emt 00:00:08]} Rb8 {[%clk
01:26:06]} {[%emt 00:00:03]} 15. Ke2 {[%clk 01:27:24]} {[%emt 00:00:35]} Ba6+
{[%clk 01:26:23]} {[%emt 00:00:14]} 16. Ke3 {[%clk 01:27:46]} {[%emt 00:00:08]}
Rfd8 {[%clk 01:26:47]} {[%emt 00:00:06]} 1/2-1/2